[Event "Late-Titled-Tuesday-Blitz-September-19-2023"]
[Site "Chess.com"]
[Date "2023.09.19"]
[Round "2"]
[White "hellokostya"]
[Black "KorolDimitriy75"]
[Result "1-0"]
[WhiteElo "2607"]
[BlackElo "2378"]
[TimeControl "180+1"]
[EndTime "14:16:41 PDT"]
[Termination "hellokostya won on time"]

1. d4 {[%clk 0:03:00.9]} 1... Nf6 {[%clk 0:02:59.6]} 2. c4 {[%clk 0:03:00.7]}
2... c5 {[%clk 0:02:59.9]} 3. d5 {[%clk 0:03:00.9]} 3... b5 {[%clk 0:03:00.1]}
4. Qc2 {[%clk 0:03:00.9]} 4... bxc4 {[%clk 0:03:00.1]} 5. e4 {[%clk 0:03:01.3]}
5... d6 {[%clk 0:03:00.6]} 6. Bxc4 {[%clk 0:03:01.2]} 6... g6 {[%clk 0:03:01.2]}
7. Nf3 {[%clk 0:03:01]} 7... Bg7 {[%clk 0:03:01.8]} 8. Nc3 {[%clk 0:03:00.4]}
8... O-O {[%clk 0:03:02.2]} 9. O-O {[%clk 0:03:00.2]} 9... Nbd7 {[%clk
0:03:02.8]} 10. Re1 {[%clk 0:02:57.9]} 10... Nb6 {[%clk 0:03:03.3]} 11. Bf1
{[%clk 0:02:57.8]} 11... e6 {[%clk 0:03:03.1]} 12. Bg5 {[%clk 0:02:51.3]} 12...
exd5 {[%clk 0:02:56.1]} 13. exd5 {[%clk 0:02:49.6]} 13... h6 {[%clk 0:02:51.5]}
14. Bh4 {[%clk 0:02:49.2]} 14... g5 {[%clk 0:02:31.2]} 15. Nxg5 {[%clk
0:02:48.8]} 15... hxg5 {[%clk 0:02:30]} 16. Bxg5 {[%clk 0:02:49.7]} 16... Qd7
{[%clk 0:01:43.4]} 17. Qd2 {[%clk 0:02:36.7]} 17... Qg4 {[%clk 0:01:11.4]} 18.
Rad1 {[%clk 0:02:15.6]} 18... Nc4 {[%clk 0:00:46.6]} 19. Bxc4 {[%clk 0:01:37.1]}
19... Qxc4 {[%clk 0:00:47.5]} 20. Bxf6 {[%clk 0:01:23.3]} 20... Bxf6 {[%clk
0:00:48.4]} 21. Re4 {[%clk 0:01:22.4]} 21... Qa6 {[%clk 0:00:17.7]} 22. Qh6
{[%clk 0:00:49.1]} 22... Bg7 {[%clk 0:00:16.7]} 23. Qg5 {[%clk 0:00:49.6]} 23...
Rb8 {[%clk 0:00:13.4]} 24. f4 {[%clk 0:00:39.6]} 24... Rb4 {[%clk 0:00:12.9]}
25. f5 {[%clk 0:00:34.5]} 25... f6 {[%clk 0:00:10.4]} 26. Qg4 {[%clk 0:00:26.7]}
26... Rxb2 {[%clk 0:00:07]} 27. Re7 {[%clk 0:00:24.5]} 27... Rf7 {[%clk
0:00:06.4]} 28. Rde1 {[%clk 0:00:23.2]} 28... Bd7 {[%clk 0:00:03.9]} 29. Qg6
{[%clk 0:00:18.5]} 1-0

[Event "Late-Titled-Tuesday-Blitz-September-19-2023"]
[Site "Chess.com"]
[Date "2023.09.19"]
[Round "2"]
[White "jinxy2009"]
[Black "FrenchMonster2002"]
[Result "1-0"]
[WhiteElo "2310"]
[BlackElo "2462"]
[TimeControl "180+1"]
[EndTime "14:16:43 PDT"]
[Termination "jinxy2009 won by checkmate"]

1. e4 {[%clk 0:03:00.9]} 1... g6 {[%clk 0:02:56]} 2. d4 {[%clk 0:03:00.2]} 2...
Bg7 {[%clk 0:02:56.6]} 3. Nc3 {[%clk 0:03:00]} 3... d6 {[%clk 0:02:56.8]} 4. Be3
{[%clk 0:02:58.4]} 4... a6 {[%clk 0:02:57.3]} 5. Qd2 {[%clk 0:02:58.7]} 5... b5
{[%clk 0:02:57.2]} 6. f3 {[%clk 0:02:55.5]} 6... Nd7 {[%clk 0:02:57.1]} 7. Nge2
{[%clk 0:02:51.1]} 7... Bb7 {[%clk 0:02:56.4]} 8. O-O-O {[%clk 0:02:41.3]} 8...
Rc8 {[%clk 0:02:55.5]} 9. h4 {[%clk 0:02:38.5]} 9... h6 {[%clk 0:02:55.7]} 10.
h5 {[%clk 0:02:31.5]} 10... g5 {[%clk 0:02:56.1]} 11. Ng3 {[%clk 0:02:29.8]}
11... e6 {[%clk 0:02:56.5]} 12. Bd3 {[%clk 0:02:26.2]} 12... c5 {[%clk
0:02:53.5]} 13. d5 {[%clk 0:02:26.5]} 13... Qa5 {[%clk 0:02:29.8]} 14. dxe6
{[%clk 0:02:19]} 14... fxe6 {[%clk 0:02:28.3]} 15. Bxb5 {[%clk 0:01:42.5]} 15...
axb5 {[%clk 0:02:13.6]} 16. Qxd6 {[%clk 0:01:42.1]} 16... Bxc3 {[%clk
0:01:41.2]} 17. Qxe6+ {[%clk 0:01:20.5]} 17... Ne7 {[%clk 0:01:35.7]} 18. Rxd7
{[%clk 0:01:14]} 18... Bxb2+ {[%clk 0:00:52.4]} 19. Kxb2 {[%clk 0:00:37.4]}
19... Qb4+ {[%clk 0:00:51.7]} 20. Kc1 {[%clk 0:00:36.8]} 20... Qa3+ {[%clk
0:00:47.3]} 21. Kd1 {[%clk 0:00:36.7]} 21... Rh7 {[%clk 0:00:36.5]} 22. Rxb7
{[%clk 0:00:20.2]} 22... Qxe3 {[%clk 0:00:25.7]} 23. Rxe7+ {[%clk 0:00:16.3]}
23... Rxe7 {[%clk 0:00:26.6]} 24. Qxe7+ {[%clk 0:00:17]} 24... Kxe7 {[%clk
0:00:25.4]} 25. Nf5+ {[%clk 0:00:17.3]} 25... Kf6 {[%clk 0:00:24.4]} 26. Nxe3
{[%clk 0:00:18.2]} 26... Ke5 {[%clk 0:00:22.3]} 27. Ke2 {[%clk 0:00:18.5]} 27...
Ra8 {[%clk 0:00:21.5]} 28. Rd1 {[%clk 0:00:18.6]} 28... Rxa2 {[%clk 0:00:19.3]}
29. Rd5+ {[%clk 0:00:18.7]} 29... Kf4 {[%clk 0:00:20.1]} 30. Rxc5 {[%clk
0:00:19.6]} 30... b4 {[%clk 0:00:19.4]} 31. Kf2 {[%clk 0:00:19.6]} 31... b3
{[%clk 0:00:08.3]} 32. Rf5# {[%clk 0:00:18.8]} 1-0

[Event "Late-Titled-Tuesday-Blitz-September-19-2023"]
[Site "Chess.com"]
[Date "2023.09.19"]
[Round "2"]
[White "Squirlolz"]
[Black "WilliamAlfaroCaracas"]
[Result "1-0"]
[WhiteElo "2499"]
[BlackElo "2282"]
[TimeControl "180+1"]
[EndTime "14:16:44 PDT"]
[Termination "Squirlolz won on time"]

1. d4 {[%clk 0:02:59.2]} 1... Nf6 {[%clk 0:02:58.9]} 2. g3 {[%clk 0:02:58.8]}
2... g6 {[%clk 0:02:55.4]} 3. Bg2 {[%clk 0:02:58.1]} 3... d5 {[%clk 0:02:56]} 4.
Nd2 {[%clk 0:02:48.2]} 4... Bg7 {[%clk 0:02:52.6]} 5. c3 {[%clk 0:02:47.3]} 5...
O-O {[%clk 0:02:49.6]} 6. e4 {[%clk 0:02:45.7]} 6... dxe4 {[%clk 0:02:46.6]} 7.
Nxe4 {[%clk 0:02:46.6]} 7... Nxe4 {[%clk 0:02:36.6]} 8. Bxe4 {[%clk 0:02:47.5]}
8... e5 {[%clk 0:02:36.6]} 9. d5 {[%clk 0:02:42.1]} 9... f5 {[%clk 0:02:29.9]}
10. Bg2 {[%clk 0:02:41.5]} 10... e4 {[%clk 0:02:08.7]} 11. Ne2 {[%clk 0:02:37]}
11... Nd7 {[%clk 0:02:03.7]} 12. O-O {[%clk 0:02:35.8]} 12... Ne5 {[%clk
0:02:02.2]} 13. Nf4 {[%clk 0:02:35.2]} 13... g5 {[%clk 0:01:47.9]} 14. Nh5
{[%clk 0:02:33.1]} 14... Nd3 {[%clk 0:01:21.1]} 15. Nxg7 {[%clk 0:02:23.7]}
15... Kxg7 {[%clk 0:01:21.2]} 16. c4 {[%clk 0:02:23.6]} 16... c6 {[%clk
0:01:16.7]} 17. dxc6 {[%clk 0:02:18.8]} 17... bxc6 {[%clk 0:01:16.6]} 18. Bd2
{[%clk 0:02:19]} 18... Qe7 {[%clk 0:00:58.8]} 19. Bc3+ {[%clk 0:02:17.4]} 19...
Kg8 {[%clk 0:00:56]} 20. f3 {[%clk 0:02:13.5]} 20... Be6 {[%clk 0:00:21]} 21.
fxe4 {[%clk 0:01:38.5]} 21... Bxc4 {[%clk 0:00:19.7]} 22. Qh5 {[%clk 0:01:32.5]}
22... Bf7 {[%clk 0:00:15]} 23. Qh6 {[%clk 0:01:31.5]} 23... Bg6 {[%clk
0:00:13.4]} 24. exf5 {[%clk 0:01:13.2]} 24... Bxf5 {[%clk 0:00:12.8]} 25. Kh1
{[%clk 0:01:09.8]} 25... Bg6 {[%clk 0:00:11.3]} 26. h3 {[%clk 0:00:49.9]} 26...
Rxf1+ {[%clk 0:00:08.6]} 27. Rxf1 {[%clk 0:00:48.3]} 27... Rf8 {[%clk
0:00:09.3]} 28. Rxf8+ {[%clk 0:00:39.7]} 28... Qxf8 {[%clk 0:00:09.3]} 29. Qxg5
{[%clk 0:00:34.3]} 29... Nf2+ {[%clk 0:00:07.4]} 30. Kh2 {[%clk 0:00:33.6]}
30... Ne4 {[%clk 0:00:05.1]} 31. Bxe4 {[%clk 0:00:31.3]} 31... Qf2+ {[%clk
0:00:02.2]} 32. Bg2 {[%clk 0:00:29.9]} 32... Kf7 {[%clk 0:00:02.9]} 33. Qf4+
{[%clk 0:00:28.9]} 1-0

[Event "Late-Titled-Tuesday-Blitz-September-19-2023"]
[Site "Chess.com"]
[Date "2023.09.19"]
[Round "2"]
[White "alexrustemov"]
[Black "amanmuhammethommadov"]
[Result "0-1"]
[WhiteElo "2789"]
[BlackElo "2554"]
[TimeControl "180+1"]
[EndTime "14:16:45 PDT"]
[Termination "amanmuhammethommadov won on time"]

1. d4 {[%clk 0:03:00.9]} 1... Nf6 {[%clk 0:03:00]} 2. c4 {[%clk 0:03:01.4]} 2...
g6 {[%clk 0:03:00.4]} 3. Nf3 {[%clk 0:03:02]} 3... Bg7 {[%clk 0:03:00.9]} 4. g3
{[%clk 0:03:02.7]} 4... O-O {[%clk 0:03:01.5]} 5. Bg2 {[%clk 0:03:03.4]} 5... d6
{[%clk 0:03:02.4]} 6. O-O {[%clk 0:03:03.9]} 6... c6 {[%clk 0:03:03.3]} 7. Nc3
{[%clk 0:03:04.4]} 7... Bf5 {[%clk 0:03:03.8]} 8. Nh4 {[%clk 0:03:03.8]} 8...
Be6 {[%clk 0:03:04]} 9. d5 {[%clk 0:03:04.4]} 9... cxd5 {[%clk 0:03:04.9]} 10.
cxd5 {[%clk 0:03:05.1]} 10... Bd7 {[%clk 0:03:05.6]} 11. Be3 {[%clk 0:03:05.6]}
11... b5 {[%clk 0:03:04.2]} 12. Bd4 {[%clk 0:02:54.1]} 12... a5 {[%clk 0:03:03]}
13. e4 {[%clk 0:02:52.4]} 13... Na6 {[%clk 0:02:55.7]} 14. f4 {[%clk 0:02:52.2]}
14... b4 {[%clk 0:02:51.7]} 15. Ne2 {[%clk 0:02:45.7]} 15... Bb5 {[%clk
0:02:47.2]} 16. h3 {[%clk 0:02:39.2]} 16... Nc5 {[%clk 0:02:36.4]} 17. e5 {[%clk
0:02:38]} 17... Nfd7 {[%clk 0:02:34.9]} 18. Nf3 {[%clk 0:02:31.9]} 18... Rc8
{[%clk 0:02:28]} 19. e6 {[%clk 0:02:18.5]} 19... fxe6 {[%clk 0:02:13.9]} 20.
Bxg7 {[%clk 0:02:18]} 20... Kxg7 {[%clk 0:02:14.3]} 21. Nfd4 {[%clk 0:02:18.3]}
21... e5 {[%clk 0:01:54.3]} 22. Nxb5 {[%clk 0:02:13.5]} 22... Qb6 {[%clk
0:01:53.6]} 23. a4 {[%clk 0:01:57.3]} 23... Nxa4+ {[%clk 0:01:09.5]} 24. Kh1
{[%clk 0:01:50.5]} 24... Nxb2 {[%clk 0:01:09.8]} 25. Qb3 {[%clk 0:01:38.9]}
25... Nc4 {[%clk 0:01:09.9]} 26. Qa4 {[%clk 0:01:11]} 26... Nc5 {[%clk
0:00:59.7]} 27. Qa2 {[%clk 0:00:55.9]} 27... b3 {[%clk 0:00:59.8]} 28. Qb1
{[%clk 0:00:39.5]} 28... Qxb5 {[%clk 0:01:00.2]} 29. Nc3 {[%clk 0:00:28.9]}
29... Qb4 {[%clk 0:01:00.2]} 30. Qe1 {[%clk 0:00:20.1]} 30... Nd3 {[%clk
0:00:58.4]} 31. Qe2 {[%clk 0:00:19.2]} 31... Qxc3 {[%clk 0:00:58.7]} 32. Rad1
{[%clk 0:00:14.9]} 32... Nb4 {[%clk 0:00:43.3]} 33. Rf3 {[%clk 0:00:11.9]} 33...
Qb2 {[%clk 0:00:37.5]} 34. Qe1 {[%clk 0:00:11]} 34... Nc2 {[%clk 0:00:36.6]} 35.
Qe2 {[%clk 0:00:08.7]} 35... Nd4 {[%clk 0:00:36.7]} 0-1

[Event "Late-Titled-Tuesday-Blitz-September-19-2023"]
[Site "Chess.com"]
[Date "2023.09.19"]
[Round "2"]
[White "Joshukid"]
[Black "AsaHoffmann"]
[Result "1-0"]
[WhiteElo "2552"]
[BlackElo "2365"]
[TimeControl "180+1"]
[EndTime "14:16:45 PDT"]
[Termination "Joshukid won on time"]

1. d4 {[%clk 0:02:57]} 1... Nf6 {[%clk 0:02:57.2]} 2. Nc3 {[%clk 0:02:56.5]}
2... d6 {[%clk 0:02:54.1]} 3. g3 {[%clk 0:02:56.3]} 3... c6 {[%clk 0:02:53.4]}
4. Bg2 {[%clk 0:02:56.2]} 4... Nbd7 {[%clk 0:02:50.9]} 5. Nf3 {[%clk 0:02:55.9]}
5... e5 {[%clk 0:02:50.4]} 6. O-O {[%clk 0:02:56.5]} 6... e4 {[%clk 0:02:38.1]}
7. Ng5 {[%clk 0:02:54.2]} 7... d5 {[%clk 0:02:37.7]} 8. f3 {[%clk 0:02:54.9]}
8... h6 {[%clk 0:02:36.9]} 9. Nh3 {[%clk 0:02:54.9]} 9... Nb6 {[%clk 0:02:31.4]}
10. fxe4 {[%clk 0:02:53]} 10... dxe4 {[%clk 0:02:29.9]} 11. Nf4 {[%clk
0:02:48.5]} 11... g5 {[%clk 0:02:24.5]} 12. Nh3 {[%clk 0:02:46.6]} 12... Bg7
{[%clk 0:02:23.8]} 13. Nf2 {[%clk 0:02:45.5]} 13... Bf5 {[%clk 0:02:13.7]} 14.
e3 {[%clk 0:02:45.3]} 14... Qe7 {[%clk 0:02:12.4]} 15. a4 {[%clk 0:02:38]} 15...
Bg6 {[%clk 0:02:06.7]} 16. b3 {[%clk 0:02:34.1]} 16... Nbd5 {[%clk 0:01:57.2]}
17. Nxd5 {[%clk 0:02:30.9]} 17... cxd5 {[%clk 0:01:50.1]} 18. c4 {[%clk
0:02:27.6]} 18... Qd6 {[%clk 0:01:30.5]} 19. Ba3 {[%clk 0:02:23.5]} 19... Qe6
{[%clk 0:01:25.7]} 20. Bh3 {[%clk 0:02:18.8]} 20... Qb6 {[%clk 0:01:12.1]} 21.
Bc5 {[%clk 0:02:08.1]} 21... Qc6 {[%clk 0:01:08.1]} 22. Ng4 {[%clk 0:02:01.2]}
22... Nd7 {[%clk 0:01:03.9]} 23. Ba3 {[%clk 0:01:57.6]} 23... Bf8 {[%clk
0:00:59.8]} 24. cxd5 {[%clk 0:01:46.2]} 24... Qxd5 {[%clk 0:00:56.7]} 25. Bxf8
{[%clk 0:01:35.3]} 25... Kxf8 {[%clk 0:00:54.1]} 26. Rc1 {[%clk 0:01:28]} 26...
Kg7 {[%clk 0:00:52.8]} 27. Rc7 {[%clk 0:01:28.1]} 27... Rad8 {[%clk 0:00:47.4]}
28. Qd2 {[%clk 0:01:16.8]} 28... h5 {[%clk 0:00:44.7]} 29. Nf2 {[%clk
0:01:06.3]} 29... g4 {[%clk 0:00:35.1]} 30. Bg2 {[%clk 0:01:05.6]} 30... Ne5
{[%clk 0:00:34.9]} 31. Qb4 {[%clk 0:00:58.4]} 31... Nf3+ {[%clk 0:00:29.8]} 32.
Bxf3 {[%clk 0:00:57.1]} 32... exf3 {[%clk 0:00:28.3]} 33. Qxb7 {[%clk
0:00:57.4]} 33... Qxb7 {[%clk 0:00:27.4]} 34. Rxb7 {[%clk 0:00:58.3]} 34... Rhe8
{[%clk 0:00:24.4]} 35. Nd1 {[%clk 0:00:48.5]} 35... Bd3 {[%clk 0:00:07.9]} 36.
Re1 {[%clk 0:00:48.5]} 36... Be2 {[%clk 0:00:07.7]} 37. Kf2 {[%clk 0:00:47.5]}
37... Rc8 {[%clk 0:00:05.8]} 38. Rxe2 {[%clk 0:00:48]} 38... fxe2 {[%clk
0:00:05]} 39. Kxe2 {[%clk 0:00:48.9]} 39... Rc2+ {[%clk 0:00:03.1]} 40. Kf1
{[%clk 0:00:37.6]} 40... Rxh2 {[%clk 0:00:02.4]} 41. Nf2 {[%clk 0:00:38.3]} 1-0

[Event "Late-Titled-Tuesday-Blitz-September-19-2023"]
[Site "Chess.com"]
[Date "2023.09.19"]
[Round "2"]
[White "mac0504"]
[Black "jefferyx"]
[Result "0-1"]
[WhiteElo "2591"]
[BlackElo "3005"]
[TimeControl "180+1"]
[EndTime "14:16:49 PDT"]
[Termination "jefferyx won by resignation"]

1. c4 {[%clk 0:02:59.6]} 1... e5 {[%clk 0:02:29.9]} 2. Nc3 {[%clk 0:02:59.2]}
2... Nf6 {[%clk 0:02:28.4]} 3. e3 {[%clk 0:02:59.3]} 3... Bb4 {[%clk 0:02:25.3]}
4. Nge2 {[%clk 0:02:59.5]} 4... O-O {[%clk 0:02:25.6]} 5. a3 {[%clk 0:02:59.3]}
5... Be7 {[%clk 0:02:25.1]} 6. d4 {[%clk 0:02:59.1]} 6... exd4 {[%clk
0:02:24.2]} 7. Qxd4 {[%clk 0:03:00]} 7... Nc6 {[%clk 0:02:19.6]} 8. Qd1 {[%clk
0:02:59.9]} 8... a5 {[%clk 0:02:19.7]} 9. Nf4 {[%clk 0:02:58.6]} 9... Re8 {[%clk
0:02:20.4]} 10. Be2 {[%clk 0:02:59]} 10... Bf8 {[%clk 0:02:21.1]} 11. O-O {[%clk
0:02:59.6]} 11... g6 {[%clk 0:02:21.8]} 12. b3 {[%clk 0:02:57.3]} 12... Bg7
{[%clk 0:02:21.8]} 13. Bb2 {[%clk 0:02:58]} 13... d6 {[%clk 0:02:22.4]} 14. Qd2
{[%clk 0:02:56.9]} 14... Bf5 {[%clk 0:02:22.4]} 15. Rad1 {[%clk 0:02:51.1]}
15... Ne5 {[%clk 0:02:21.1]} 16. h3 {[%clk 0:02:46.5]} 16... h5 {[%clk
0:02:20.5]} 17. Nfd5 {[%clk 0:02:42.5]} 17... Nfd7 {[%clk 0:02:19.2]} 18. e4
{[%clk 0:02:20.5]} 18... Be6 {[%clk 0:02:19.3]} 19. f4 {[%clk 0:02:12.6]} 19...
Nc6 {[%clk 0:02:17.2]} 20. Kh1 {[%clk 0:01:53]} 20... Nc5 {[%clk 0:02:16.6]} 21.
Qc2 {[%clk 0:01:31.7]} 21... Nd4 {[%clk 0:02:16]} 22. Rxd4 {[%clk 0:01:32.5]}
22... Bxd4 {[%clk 0:02:15.8]} 23. f5 {[%clk 0:01:33.4]} 23... Bxd5 {[%clk
0:02:14.2]} 24. Nxd5 {[%clk 0:01:31.3]} 24... Bxb2 {[%clk 0:02:14.5]} 25. Qxb2
{[%clk 0:01:31.7]} 25... Nxe4 {[%clk 0:02:14.9]} 26. Bd3 {[%clk 0:00:43.8]}
26... Ng3+ {[%clk 0:02:02.3]} 27. Kg1 {[%clk 0:00:44.2]} 27... Re5 {[%clk
0:02:01.7]} 28. Rf3 {[%clk 0:00:31.4]} 28... h4 {[%clk 0:01:02.5]} 29. fxg6
{[%clk 0:00:31.1]} 29... f5 {[%clk 0:01:03.4]} 30. Qd2 {[%clk 0:00:20.3]} 30...
Kg7 {[%clk 0:01:03.6]} 31. Nf4 {[%clk 0:00:14]} 31... Qe7 {[%clk 0:00:59.8]} 32.
Rxg3 {[%clk 0:00:04.5]} 32... hxg3 {[%clk 0:00:51.8]} 33. Nh5+ {[%clk
0:00:04.5]} 33... Kxg6 {[%clk 0:00:52.5]} 34. Nxg3 {[%clk 0:00:05.1]} 34... Qg5
{[%clk 0:00:53.1]} 35. Qf2 {[%clk 0:00:04.1]} 35... Qe3 {[%clk 0:00:53.1]} 36.
Bxf5+ {[%clk 0:00:04.1]} 36... Kg5 {[%clk 0:00:39.7]} 37. Bg4 {[%clk 0:00:01.9]}
37... Rf8 {[%clk 0:00:35.9]} 38. Qxe3+ {[%clk 0:00:01.7]} 38... Rxe3 {[%clk
0:00:36.8]} 39. Bf3 {[%clk 0:00:01.1]} 39... Rfxf3 {[%clk 0:00:33.4]} 40. gxf3
{[%clk 0:00:02]} 40... Rxf3 {[%clk 0:00:34.3]} 41. Ne4+ {[%clk 0:00:02.6]} 41...
Kh4 {[%clk 0:00:33.8]} 42. Nd2 {[%clk 0:00:03.5]} 0-1

[Event "Late-Titled-Tuesday-Blitz-September-19-2023"]
[Site "Chess.com"]
[Date "2023.09.19"]
[Round "2"]
[White "ferrufino64"]
[Black "RCone"]
[Result "0-1"]
[WhiteElo "2198"]
[BlackElo "2453"]
[TimeControl "180+1"]
[EndTime "14:16:49 PDT"]
[Termination "RCone won by resignation"]

1. e4 {[%clk 0:02:51.1]} 1... d6 {[%clk 0:03:00.9]} 2. d4 {[%clk 0:02:49.5]}
2... Nf6 {[%clk 0:02:53.9]} 3. Nc3 {[%clk 0:02:45.3]} 3... g6 {[%clk 0:02:52.9]}
4. Nf3 {[%clk 0:02:42.3]} 4... Bg7 {[%clk 0:02:50.9]} 5. Be2 {[%clk 0:02:42.7]}
5... O-O {[%clk 0:02:50.6]} 6. O-O {[%clk 0:02:43.1]} 6... Bg4 {[%clk
0:02:50.9]} 7. h3 {[%clk 0:02:43.1]} 7... Bxf3 {[%clk 0:02:51.2]} 8. Bxf3 {[%clk
0:02:44]} 8... e5 {[%clk 0:02:51.5]} 9. Be3 {[%clk 0:02:43.1]} 9... Nc6 {[%clk
0:02:51.8]} 10. dxe5 {[%clk 0:02:41]} 10... dxe5 {[%clk 0:02:50.9]} 11. Nd5
{[%clk 0:02:40.2]} 11... Nd4 {[%clk 0:02:26.1]} 12. Nxf6+ {[%clk 0:01:37.5]}
12... Qxf6 {[%clk 0:02:22.2]} 13. c3 {[%clk 0:01:38.1]} 13... Ne6 {[%clk
0:02:14.9]} 14. g3 {[%clk 0:01:33.5]} 14... Rfd8 {[%clk 0:02:07.4]} 15. Qe2
{[%clk 0:01:33.7]} 15... b6 {[%clk 0:02:07.7]} 16. Kg2 {[%clk 0:01:33.5]} 16...
h5 {[%clk 0:02:03.2]} 17. h4 {[%clk 0:01:33.6]} 17... a5 {[%clk 0:01:57.9]} 18.
a4 {[%clk 0:01:33.2]} 18... Bf8 {[%clk 0:01:54.2]} 19. Rfd1 {[%clk 0:01:32.5]}
19... Bc5 {[%clk 0:01:53.8]} 20. Bd2 {[%clk 0:01:27.3]} 20... Qe7 {[%clk
0:01:47.7]} 21. Qc4 {[%clk 0:01:22.7]} 21... Qf6 {[%clk 0:01:07.8]} 22. Be2
{[%clk 0:01:17.9]} 22... Qxf2+ {[%clk 0:01:00.1]} 23. Kh3 {[%clk 0:01:18.1]}
23... Qf6 {[%clk 0:00:56.3]} 24. Rf1 {[%clk 0:01:10.1]} 24... Qe7 {[%clk
0:00:56.2]} 25. Rad1 {[%clk 0:01:08.1]} 25... Rd7 {[%clk 0:00:48.5]} 26. Bc1
{[%clk 0:01:05]} 26... Rad8 {[%clk 0:00:47.6]} 27. Rxd7 {[%clk 0:01:05.1]} 27...
Rxd7 {[%clk 0:00:48.4]} 28. Qb3 {[%clk 0:01:06]} 28... Kg7 {[%clk 0:00:42.9]}
29. Qc2 {[%clk 0:01:05.7]} 29... c6 {[%clk 0:00:34.2]} 30. Bc4 {[%clk
0:01:05.7]} 30... f6 {[%clk 0:00:27.2]} 31. Qe2 {[%clk 0:01:05.6]} 31... Rd6
{[%clk 0:00:23.6]} 32. Bb3 {[%clk 0:00:55.7]} 32... Qd7 {[%clk 0:00:22.2]} 33.
Bc2 {[%clk 0:00:49.7]} 33... b5 {[%clk 0:00:21.1]} 34. Kg2 {[%clk 0:00:47.9]}
34... b4 {[%clk 0:00:20.2]} 35. Qa6 {[%clk 0:00:45.8]} 35... bxc3 {[%clk
0:00:19.7]} 36. bxc3 {[%clk 0:00:46.7]} 36... Rd2+ {[%clk 0:00:18.3]} 37. Bxd2
{[%clk 0:00:45.5]} 37... Qxd2+ {[%clk 0:00:19.2]} 38. Kh3 {[%clk 0:00:45.9]}
38... Qxc2 {[%clk 0:00:18.8]} 39. Qb7+ {[%clk 0:00:46]} 39... Kh6 {[%clk
0:00:17.5]} 40. Qf7 {[%clk 0:00:46.5]} 40... Nf4+ {[%clk 0:00:15.3]} 41. gxf4
{[%clk 0:00:45.8]} 41... Qd3+ {[%clk 0:00:14.7]} 42. Kg2 {[%clk 0:00:45.2]}
42... Qe2+ {[%clk 0:00:15]} 43. Kg3 {[%clk 0:00:43.9]} 43... Qxf1 {[%clk
0:00:14.1]} 44. Qxf6 {[%clk 0:00:41.2]} 44... Qxf4+ {[%clk 0:00:13.7]} 45. Qxf4+
{[%clk 0:00:40.4]} 45... exf4+ {[%clk 0:00:14.6]} 46. Kf3 {[%clk 0:00:41.3]}
46... g5 {[%clk 0:00:14.5]} 47. c4 {[%clk 0:00:42.2]} 0-1

[Event "Late-Titled-Tuesday-Blitz-September-19-2023"]
[Site "Chess.com"]
[Date "2023.09.19"]
[Round "2"]
[White "RamyresCoelho"]
[Black "dianosky"]
[Result "0-1"]
[WhiteElo "2296"]
[BlackElo "2509"]
[TimeControl "180+1"]
[EndTime "14:16:50 PDT"]
[Termination "dianosky won by checkmate"]

1. e4 {[%clk 0:02:52.5]} 1... c5 {[%clk 0:02:59]} 2. Nf3 {[%clk 0:02:52.1]} 2...
a6 {[%clk 0:02:58.8]} 3. d4 {[%clk 0:02:50.3]} 3... cxd4 {[%clk 0:02:58.7]} 4.
Nxd4 {[%clk 0:02:51.1]} 4... Nf6 {[%clk 0:02:58.7]} 5. Nc3 {[%clk 0:02:51.6]}
5... e5 {[%clk 0:02:58.7]} 6. Nf3 {[%clk 0:02:49.8]} 6... Bb4 {[%clk 0:02:58.5]}
7. Bc4 {[%clk 0:02:48.7]} 7... Qc7 {[%clk 0:02:55.9]} 8. Bb3 {[%clk 0:02:43.7]}
8... Bxc3+ {[%clk 0:02:40.7]} 9. bxc3 {[%clk 0:02:44.6]} 9... Qxc3+ {[%clk
0:02:40.3]} 10. Bd2 {[%clk 0:02:44.1]} 10... Qc7 {[%clk 0:02:40.5]} 11. Qe2
{[%clk 0:02:41.1]} 11... h6 {[%clk 0:02:38.2]} 12. O-O {[%clk 0:02:41]} 12...
Nc6 {[%clk 0:02:38.4]} 13. Nh4 {[%clk 0:02:36.9]} 13... d6 {[%clk 0:02:37.9]}
14. Nf5 {[%clk 0:02:35.1]} 14... Bxf5 {[%clk 0:02:35.2]} 15. exf5 {[%clk
0:02:20.2]} 15... Nd4 {[%clk 0:02:35.1]} 16. Qd3 {[%clk 0:02:10.4]} 16... Rc8
{[%clk 0:02:34.2]} 17. f4 {[%clk 0:02:02.5]} 17... Qc5 {[%clk 0:02:17.6]} 18.
Kh1 {[%clk 0:02:01.3]} 18... Ng4 {[%clk 0:02:13.4]} 19. fxe5 {[%clk 0:01:56.6]}
19... Nxb3 {[%clk 0:02:04.6]} 20. cxb3 {[%clk 0:01:54]} 20... Nf2+ {[%clk
0:02:00.6]} 21. Rxf2 {[%clk 0:01:54.3]} 21... Qxf2 {[%clk 0:02:00.5]} 22. Rf1
{[%clk 0:01:38.9]} 22... Qc5 {[%clk 0:01:56]} 23. exd6 {[%clk 0:01:30.9]} 23...
O-O {[%clk 0:01:50.7]} 24. f6 {[%clk 0:01:30.2]} 24... Rfd8 {[%clk 0:01:49.6]}
25. fxg7 {[%clk 0:01:23.4]} 25... Rxd6 {[%clk 0:01:37.4]} 26. Qf3 {[%clk
0:01:07.8]} 26... Qd5 {[%clk 0:01:36.7]} 27. Qg4 {[%clk 0:00:48.2]} 27... Rc2
{[%clk 0:01:26.7]} 28. Bf4 {[%clk 0:00:40]} 28... Rg6 {[%clk 0:01:24.4]} 29. Qh3
{[%clk 0:00:22.3]} 29... Rgxg2 {[%clk 0:01:12.5]} 30. Qf3 {[%clk 0:00:22]} 30...
Qxf3 {[%clk 0:01:02.7]} 31. Rxf3 {[%clk 0:00:22.9]} 31... Rgf2 {[%clk
0:01:02.1]} 32. Rxf2 {[%clk 0:00:11.8]} 32... Rxf2 {[%clk 0:01:01.6]} 33. Bxh6
{[%clk 0:00:12.7]} 33... Rxa2 {[%clk 0:01:01.5]} 34. h4 {[%clk 0:00:10.4]} 34...
Rb2 {[%clk 0:01:01]} 35. h5 {[%clk 0:00:03.8]} 35... Rxb3 {[%clk 0:00:59.6]} 36.
Kh2 {[%clk 0:00:04.7]} 36... Rb5 {[%clk 0:00:59.4]} 37. Bf4 {[%clk 0:00:03.2]}
37... Rxh5+ {[%clk 0:01:00.2]} 38. Kg3 {[%clk 0:00:04.1]} 38... Kxg7 {[%clk
0:01:00.4]} 39. Kf3 {[%clk 0:00:05]} 39... Rf5 {[%clk 0:00:59.7]} 40. Ke4 {[%clk
0:00:05.9]} 40... Rxf4+ {[%clk 0:01:00]} 41. Kxf4 {[%clk 0:00:06.8]} 41... Kf6
{[%clk 0:00:59.9]} 42. Ke4 {[%clk 0:00:07]} 42... Kg5 {[%clk 0:01:00.1]} 43. Kd4
{[%clk 0:00:07.9]} 43... f5 {[%clk 0:01:00.5]} 44. Kc5 {[%clk 0:00:08.8]} 44...
f4 {[%clk 0:01:00.9]} 45. Kb6 {[%clk 0:00:09.7]} 45... f3 {[%clk 0:01:01.3]} 46.
Kxb7 {[%clk 0:00:10.6]} 46... f2 {[%clk 0:01:02.1]} 47. Kxa6 {[%clk 0:00:11.5]}
47... f1=Q+ {[%clk 0:01:03]} 48. Ka5 {[%clk 0:00:11.6]} 48... Qc4 {[%clk
0:01:02.4]} 49. Kb6 {[%clk 0:00:11.4]} 49... Kf5 {[%clk 0:01:02.3]} 50. Ka5
{[%clk 0:00:12.3]} 50... Ke5 {[%clk 0:01:02.5]} 51. Kb6 {[%clk 0:00:13]} 51...
Kd6 {[%clk 0:01:02.6]} 52. Ka5 {[%clk 0:00:13.9]} 52... Qb3 {[%clk 0:01:02.8]}
53. Ka6 {[%clk 0:00:13.9]} 53... Kc6 {[%clk 0:01:03.5]} 54. Ka5 {[%clk
0:00:14.8]} 54... Qb5# {[%clk 0:01:02.9]} 0-1